fUST/lending_fUST_20250101
["ID","MTS","AMOUNT","RATE_DAILY","PERIOD"]
[347337923,1735704638440,-500.0,0.00019178,2]
[347337925,1735704638449,-550.81,0.00019178,2]
[347337927,1735704638458,-550.81,0.00019178,2]
[347337929,1735704638467,-500.0,0.00019178,2]
[347337931,1735704638476,-550.81,0.00019178,2]
[347337933,1735704638486,-550.81,0.00019178,2]
[347337935,1735704638495,-550.81,0.00019178,2]
[347337937,1735704638504,-550.81,0.00019178,2]
[347337939,1735704638513,-550.81,0.00019178,2]
[347337941,1735704638522,-500.0,0.00019178,2]
[347337943,1735704638531,-550.81,0.00019178,2]
[347337945,1735704638540,-550.81,0.00019178,2]
[347337947,1735704638551,-550.81,0.00019178,2]
[347337949,1735704638563,-550.81,0.00019178,2]
[347337950,1735704638572,-550.81,0.00019178,2]
[347337953,1735704638581,-550.81,0.00019178,2]
[347337954,1735704638593,-550.81,0.00019178,2]
[347337956,1735704638603,-550.81,0.00019178,2]
[347337958,1735704638612,-550.81,0.00019178,2]
[347337960,1735704638622,-550.81,0.00019178,2]
[347337963,1735704638634,-550.81,0.00019178,2]
[347337965,1735704638644,-550.81,0.00019178,2]
[347337967,1735704638653,-550.81,0.00019178,2]
[347337969,1735704638662,-550.81,0.00019178,2]
[347337971,1735704638671,-550.81,0.00019178,2]
[347337973,1735704638681,-550.83969132,0.00019178,2]
[347337975,1735704638690,-503.35608707,0.00019178,2]
[347337977,1735704638700,-320.19989258,0.00019178,2]
[347337979,1735704638709,-500.0,0.00019178,2]
[347337980,1735704638719,-348.05079213,0.00019178,2]
[347337982,1735704638729,-502.75305545,0.00019178,2]
[347337984,1735704638738,-500.0,0.00019178,2]
[347337986,1735704638747,-1007.01,0.00019178,2]
[347337988,1735704638756,-500.0,0.00019178,2]
[347337991,1735704638767,-501.34985252,0.00019178,2]
[347337992,1735704638775,-506.74018828,0.00019178,2]
[347337995,1735704638785,-583.37478233,0.00019178,2]
[347337996,1735704638794,-557.15867209,0.00019178,2]
[347337998,1735704638804,-537.72078595,0.00019178,2]
[347338000,1735704638813,-514.49926321,0.00019178,2]
[347338002,1735704638822,-508.90247428,0.00019178,2]
[347338004,1735704638832,-504.83556762,0.00019178,2]
[347338007,1735704638849,-528.2,0.00019178,2]
[347338010,1735704638865,-504.35135708,0.00019178,2]
[347338012,1735704638879,-500.0,0.00019178,2]
[347338015,1735704638893,-37.8409599,0.00019178,2]
[347338017,1735704638910,-462.1590401,0.00019178,2]
[347338020,1735704638924,-500.0,0.00019178,2]
[347338022,1735704638937,-508.94990707,0.00019178,2]
[347338025,1735704638950,-504.42001881,0.00019178,2]
[347338027,1735704638963,-500.0,0.00019178,2]
[347338030,1735704638977,-500.0,0.00019178,2]
[347338032,1735704638990,-58.11631233,0.00019178,2]
[347338034,1735704639007,-441.88368767,0.00019178,2]
[347338037,1735704639019,-500.0,0.00019178,2]
[347338039,1735704639034,-137.24243747,0.00019178,2]
[347338130,1735704640193,-268.99979083,0.00018986,2]
[347338132,1735704640206,-227.75021117,0.00019178,2]
[347338907,1735704794340,380.0,0.00013973,2]
[347339091,1735704962545,10000.0,0.00025,120]
[347339092,1735704971356,10000.0,0.00025,120]
[347339093,1735704983097,10000.0,0.00025,120]
[347339094,1735704995908,10000.0,0.00025,120]
[347339095,1735705001504,5420.41871643,0.00025,120]
[347339182,1735705695827,361.0,0.00013973,2]
[347339220,1735705834408,-206.8069445,0.00016484,2]
[347339221,1735705834418,-300.0,0.00016583,2]
[347339222,1735705834429,-237.8730575,0.00016584,2]
[347339225,1735705838247,-2962.68,0.00016584,2]
[347339226,1735705838259,-860.81001428,0.00016584,2]
[347339227,1735705838305,-8438.63692822,0.00016584,2]
[347339228,1735705838315,-1420.5624909,0.00016705,2]
[347339229,1735705838326,-12500.0,0.0001685,2]
[347339230,1735705838336,-12500.0,0.00017177,2]
[347339231,1735705838346,-12500.0,0.0001741,2]
[347339232,1735705838356,-5398.10306052,0.00017748,2]
[347339233,1735705838368,-7101.89693948,0.00017748,2]
[347339234,1735705838378,-12500.0,0.00017831,2]
[347339235,1735705838387,-1892.79393604,0.00018,2]
[347339236,1735705838534,-442.1137652,0.000181,2]
[347339237,1735705838545,-155.0875379,0.000181,2]
[347339238,1735705838555,-420.0,0.0001812,2]
[347339239,1735705838565,-12500.0,0.00018258,2]
[347339240,1735705838575,-306.0,0.00018438,2]
[347339241,1735705838584,-699.571,0.0001848,2]
[347339242,1735705838594,-189.787,0.0001852,2]
[347339243,1735705838603,-12500.0,0.00018614,2]
[347339244,1735705838613,-273.923867,0.00018678,2]
[347339245,1735705838623,-218.4576854,0.00018678,2]
[347339246,1735705838633,-2584.98994921,0.000187,2]
[347339247,1735705838642,-2584.98994911,0.000187,2]
[347339248,1735705838652,-2584.98994911,0.000187,2]
[347339249,1735705838661,-2584.98994911,0.000187,2]
[347339250,1735705838671,-2584.98994911,0.00018771,2]
[347339251,1735705838680,-12500.0,0.00018779,2]
[347339252,1735705838690,-356.61241459,0.00018999,2]
[347339253,1735705838699,-9183.76616286,0.00019,2]
[347339254,1735705838708,-21475.60303007,0.00019,2]
[347339289,1735705840237,-257.07109867,0.00017919,2]
[347339291,1735705840247,-9393.28095813,0.00019,2]
[347339330,1735705843449,-4880.01555709,0.00019,2]
[347339440,1735706549823,342.95,0.00013973,2]
[347339445,1735706666616,10000.0,0.00015,2]
[347339471,1735706893478,-670.743,0.0001848,2]
[347339472,1735706893503,-300.0,0.00018644,2]
[347339473,1735706893525,-12500.0,0.00018645,2]
[347339474,1735706893548,-1883.0,0.00018942,2]
[347339475,1735706893569,-708.9,0.00018942,2]
[347339476,1735706893593,-5514.10020946,0.00019,2]
[347339477,1735706893615,-302.60665372,0.00019,2]
[347339478,1735706893638,-5164.75756255,0.00019039,2]
[347339479,1735706893660,-347.57873482,0.00019046,2]
[347339480,1735706893684,-422.9342067,0.00019068,2]
[347339481,1735706893708,-618.0,0.000191,2]
[347339482,1735706893730,-469.0,0.00019117,2]
[347339483,1735706893753,-469.0,0.00019117,2]
[347339484,1735706893926,-187.71,0.00019117,2]
[347339485,1735706893955,-465.60344616,0.00019145,2]
[347339486,1735706893977,-309.064,0.00019146,2]
[347339487,1735706893999,-403.671,0.00019146,2]
[347339488,1735706894024,-150.0,0.00019146,2]
[347339489,1735706894046,-151.702,0.00019146,2]
[347339490,1735706894069,-2093.0,0.00019146,2]
[347339491,1735706894092,-2347.0,0.00019146,2]
[347339492,1735706894116,-422.9342067,0.00019151,2]
[347339493,1735706894140,-649.70899827,0.00019173,2]
[347339494,1735706894164,-554.39030955,0.00019173,2]
[347339495,1735706894186,-200.0,0.00019173,2]
[347339496,1735706894210,-500.0,0.00019173,2]
[347339497,1735706894232,-505.18606126,0.00019173,2]
[347339498,1735706894254,-503.12164367,0.00019173,2]
[347339499,1735706894278,-215.62574982,0.00019173,2]
[347339500,1735706894300,-502.00796745,0.00019173,2]
[347339501,1735706894323,-500.0,0.00019173,2]
[347339502,1735706894348,-151.83,0.00019173,2]
[347339503,1735706894372,-4591.88308143,0.00019178,2]
[347339504,1735706894397,-55224.94116844,0.00019178,2]
[347339534,1735707032690,-558.114642,0.00018309,2]
[347339535,1735707032699,-5164.75756255,0.00018878,2]
[347339536,1735707032709,-302.60665372,0.00019,2]
[347339537,1735707032719,-1938.74246188,0.00019078,2]
[347339538,1735707032729,-779.0,0.000191,2]
[347339539,1735707032741,-300.0,0.00019177,2]
[347339541,1735707032750,-2295.94154072,0.00019178,2]
[347339543,1735707032760,-849.73469076,0.00019178,2]
[347339587,1735707038478,-802.31682087,0.00019178,2]
[347339758,1735707476219,325.8025,0.00013973,2]
[347339808,1735708232763,-667.27490726,0.00016661,2]
[347339809,1735708232774,-384.68241143,0.00016829,2]
[347339810,1735708232784,-150.0,0.00017,2]
[347339811,1735708232794,-241.56635725,0.00017548,2]
[347339812,1735708232874,-108.0232223,0.00017548,2]
[347339813,1735708232884,-300.0,0.0001811,2]
[347339814,1735708232898,-1147.97077036,0.00018111,2]
[347339815,1735708232908,-4243.32183436,0.00018111,2]
[347339857,1735708238585,-1662.89765099,0.00018111,2]
[347340008,1735708243809,-815.52035085,0.00018111,2]
[347340047,1735708246691,-403.86382346,0.0001793,2]
[347340082,1735708407817,309.512375,0.00013973,2]
[347340113,1735709265593,294.036756,0.00013973,2]
[347340114,1735709296230,6775.94134084,0.000125,2]
[347340160,1735709431976,-300.0,0.00015733,2]
[347340162,1735709431985,-415.93834936,0.00015892,2]
[347340164,1735709431995,-324.3964008,0.0001714,2]
[347340166,1735709432005,-300.0,0.00017238,2]
[347340168,1735709432015,-15530.3727314,0.00017239,2]
[347340171,1735709432035,-421.49265646,0.00017239,2]
[347340173,1735709432046,-300.0,0.00017239,2]
[347340185,1735709437848,-1153.346855,0.00017239,2]
[347340186,1735709437861,-1500.0,0.00017239,2]
[347340200,1735709440620,-1000.0,0.00017239,2]
[347340206,1735709442894,-499.9967325,0.00017239,2]
[347340208,1735709442906,-9765.1001284,0.00017239,2]
[347340210,1735709442917,-2396.384204,0.00017239,2]
[347340262,1735709445965,-23332.57038319,0.00017239,2]
[347340263,1735709445975,-15216.18207795,0.0001724,2]
[347340292,1735710232317,279.334918,0.00013973,2]
[347340316,1735710632153,-163.5555391,0.00017,2]
[347340317,1735710632163,-300.0,0.00017846,2]
[347340318,1735710632173,-12791.16296073,0.00017847,2]
[347340319,1735710632185,-928.73237632,0.00017847,2]
[347340320,1735710632236,-11180.10466295,0.00017847,2]
[347340321,1735710632246,-662.365,0.0001822,2]
[347340322,1735710632255,-352.44517225,0.00018274,2]
[347340323,1735710632265,-352.44517225,0.00018384,2]
[347340324,1735710632274,-352.44517225,0.00018466,2]
[347340325,1735710632283,-184.151,0.00018516,2]
[347340326,1735710632293,-352.44517225,0.00018548,2]
[347340327,1735710632303,-153.5878957,0.000186,2]
[347340328,1735710632313,-443.3216861,0.000186,2]
[347340329,1735710632322,-153.5878957,0.000186,2]
[347340330,1735710632332,-153.5878957,0.000186,2]
[347340331,1735710632341,-153.5878957,0.000186,2]
[347340332,1735710632351,-352.44517225,0.0001863,2]
[347340333,1735710632361,-352.44517225,0.0001874,2]
[347340334,1735710632370,-150.0,0.00018809,2]
[347340335,1735710632380,-2091.0,0.00018809,2]
[347340336,1735710632389,-2347.0,0.00018809,2]
[347340337,1735710632399,-352.44517225,0.00018822,2]
[347340338,1735710632408,-352.44517225,0.00018904,2]
[347340339,1735710632418,-1091.19554453,0.00018959,2]
[347340340,1735710632428,-238.9624696,0.00018986,2]
[347340341,1735710632437,-352.44517225,0.00018986,2]
[347340342,1735710632447,-1508.90924203,0.00019,2]
[347340343,1735710632456,-302.60665372,0.00019,2]
[347340344,1735710632466,-302.63687509,0.00019,2]
[347340345,1735710632475,-352.44517225,0.00019068,2]
[347340346,1735710632484,-1841.8053389,0.00019078,2]
[347340347,1735710632495,-210.0,0.0001911,2]
[347340348,1735710632504,-500.0,0.00019173,2]
[347340349,1735710632684,-151.0,0.00019173,2]
[347340350,1735710632696,-151.0,0.00019177,2]
[347340351,1735710632707,-151.0,0.00019177,2]
[347340352,1735710632718,-16.35783176,0.00019177,2]
[347340361,1735710638104,-170.0717283,0.00019177,2]
[347340362,1735710638114,-573.98538518,0.00019178,2]
[347340363,1735710638123,-3622.53786861,0.00019178,2]
[347340368,1735710640082,-337.43574855,0.00019178,2]
[347340369,1735710643078,-505.0355793,0.00019178,2]
[347340437,1735711182400,265.368172,0.00013973,2]
[347340504,1735711832412,-1717.762645,0.00018087,2]
[347340506,1735711832422,-634.415,0.0001822,2]
[347340508,1735711832432,-1749.71507186,0.000189,2]
[347340510,1735711832443,-283.8468507,0.000189,2]
[347340512,1735711832453,-238.9624697,0.00018986,2]
[347340514,1735711832469,-300.0,0.00018999,2]
[347340516,1735711832479,-175.93571963,0.00018999,2]
[347340518,1735711832491,-286.99269259,0.00019,2]
[347340520,1735711832502,-26124.88742267,0.00019,2]
[347340522,1735711832512,-10000.0,0.00019,2]
[347340524,1735711832521,-10000.0,0.00019,2]
[347340526,1735711832532,-10000.0,0.00019,2]
[347340528,1735711832543,-1158.8369916,0.00019,2]
[347340633,1735711840202,-347.47130092,0.00019,2]
[347340634,1735711840306,-1043.7,0.00019,2]
[347340635,1735711840318,-312.2633,0.00019,2]
[347340662,1735711843327,-7137.72840748,0.00019,2]
[347340663,1735711843336,-5778.59189127,0.00019,2]
[347340664,1735711843351,-4221.40810873,0.00019,2]
[347340665,1735711843361,-10000.0,0.00019,3]
[347340666,1735711843372,-1963.01820931,0.00019,2]
[347340667,1735711843384,-1707.98179069,0.00019,2]
[347340668,1735711843394,-10000.0,0.00019,2]
[347340669,1735711843404,-10000.0,0.00019,2]
[347340670,1735711843414,-151.0,0.00019,2]
[347340671,1735711843424,-151.0,0.00019,2]
[347340674,1735711843433,-232.86597,0.00019,2]
[347340675,1735711843445,-155.531659,0.00019,2]
[347340678,1735711843454,-302.66710251,0.00019,2]
[347340681,1735711843464,-1920.374,0.00019002,2]
[347340683,1735711843473,-732.66348402,0.00019002,2]
[347340797,1735712074419,276.513094,0.00013973,2]
[347341788,1735713032480,-160.4740916,0.00017589,2]
[347341789,1735713032490,-1406.07531268,0.00017692,2]
[347341790,1735713032501,-1869.21193431,0.00017692,2]
[347341791,1735713032513,-409.86505131,0.00017692,2]
[347341792,1735713032522,-180.21521658,0.00017854,2]
[347341793,1735713032531,-43.8268101,0.00017953,2]
[347341794,1735713032543,-256.1731899,0.00017953,2]
[347341795,1735713032552,-2198.02350389,0.00017954,2]
[347341796,1735713032593,-7535.92255801,0.00017954,2]
[347341797,1735713032602,-500.0,0.000182,2]
[347341798,1735713032611,-608.368,0.0001822,2]
[347341799,1735713032620,-176.22258612,0.00018274,2]
[347341800,1735713032629,-500.0,0.000185,2]
[347341801,1735713032638,-500.0,0.000185,2]
[347341802,1735713032647,-176.22258612,0.00018521,2]
[347341803,1735713032656,-810.43214494,0.00018521,2]
[347341804,1735713032665,-184.152,0.00018522,2]
[347341805,1735713032675,-176.22258612,0.00018767,2]
[347341806,1735713032684,-5437.58903725,0.00018816,2]
[347341807,1735713032693,-600.0,0.00018937,2]
[347341808,1735713032703,-2156.194,0.00018985,2]
[347341809,1735713032712,-394.0,0.00018985,2]
[347341810,1735713032722,-151.0,0.00019,2]
[347341811,1735713032731,-151.0,0.00019,2]
[347341812,1735713032740,-151.0,0.00019,2]
[347341813,1735713032749,-151.0,0.00019,2]
[347341814,1735713032758,-151.0,0.00019,2]
[347341815,1735713032768,-151.0,0.00019,2]
[347341816,1735713032778,-277.809881,0.00019,2]
[347341817,1735713032787,-277.809881,0.00019,2]
[347341818,1735713032796,-277.809881,0.00019,2]
[347341819,1735713032805,-277.809881,0.00019,2]
[347341820,1735713032815,-277.809881,0.00019,2]
[347341821,1735713032824,-277.809881,0.00019,2]
[347341822,1735713032833,-302.63687509,0.00019,2]
[347341823,1735713032843,-302.60665372,0.00019,2]
[347341824,1735713032852,-176.22258612,0.00019014,2]
[347341825,1735713032861,-226.8,0.00019046,4]
[347341826,1735713032870,-1662.22931821,0.00019078,2]
[347341827,1735713032879,-277.809881,0.00019089,2]
[347341828,1735713032889,-411.0,0.0001911,2]
[347341829,1735713032899,-600.0,0.00019134,2]
[347341830,1735713032911,-483.73482604,0.00019173,2]
[347341831,1735713032920,-200.09656262,0.00019177,2]
[347341832,1735713032930,-500.0,0.00019177,2]
[347341833,1735713032939,-500.0,0.00019177,2]
[347341834,1735713032948,-500.0,0.00019177,2]
[347341835,1735713032958,-500.0,0.00019177,2]
[347341836,1735713032967,-443.14878808,0.00019177,2]
[347341837,1735713032976,-373.34214768,0.00019177,2]
[347341838,1735713032986,-286.99269258,0.00019178,2]
[347341839,1735713032995,-13062.44371134,0.00019178,2]
[347341840,1735713033004,-500.0,0.00019178,2]
[347341841,1735713033014,-500.0,0.00019178,2]
[347341842,1735713033024,-601.0,0.00019178,2]
[347341843,1735713033034,-601.0,0.00019178,2]
[347341844,1735713033047,-601.0,0.00019178,2]
[347341845,1735713033068,-601.0,0.00019178,2]
[347341846,1735713033079,-601.0,0.00019178,2]
[347341847,1735713033089,-601.0,0.00019178,2]
[347341848,1735713033099,-601.0,0.00019178,2]
[347341849,1735713033109,-601.0,0.00019178,2]
[347341850,1735713033120,-601.0,0.00019178,2]
[347341851,1735713033129,-601.0,0.00019178,2]
[347341852,1735713033139,-151.0,0.00019178,2]
[347341853,1735713033150,-151.501658,0.00019178,2]
[347341854,1735713033160,-202.155449,0.00019178,2]
[347341855,1735713033169,-500.0,0.00019178,2]
[347341856,1735713033181,-500.0,0.00019178,2]
[347341857,1735713033191,-500.0,0.00019178,2]
[347341858,1735713033202,-580.54,0.00019178,2]
[347341859,1735713033212,-151.0,0.00019178,2]
[347341860,1735713033222,-151.0,0.00019178,2]
[347341861,1735713033232,-151.0,0.00019178,2]
[347341862,1735713033241,-183.324007,0.00019178,2]
[347341863,1735713033251,-151.0,0.00019178,2]
[347341864,1735713033261,-280.321612,0.00019178,2]
[347341865,1735713033271,-14435.78,0.00019178,2]
[347341866,1735713033281,-277.809881,0.00019178,2]
[347341867,1735713033291,-277.809881,0.00019178,2]
[347341868,1735713033301,-277.809881,0.00019178,2]
[347341869,1735713033311,-277.809881,0.00019178,2]
[347341870,1735713033321,-277.809882,0.00019178,2]
[347341871,1735713033330,-151.0,0.00019178,2]
[347341872,1735713033340,-151.0,0.00019178,2]
[347341873,1735713033350,-151.0,0.00019178,2]
[347341874,1735713033360,-151.0,0.00019178,2]
[347341875,1735713033369,-151.0,0.00019178,2]
[347341876,1735713033379,-167.8384,0.00019178,2]
[347341877,1735713033389,-151.0,0.00019178,2]
[347341878,1735713033398,-151.0,0.00019178,2]
[347341879,1735713033408,-151.0,0.00019178,2]
[347341880,1735713033417,-151.0,0.00019178,2]
[347341881,1735713033428,-151.0,0.00019178,2]
[347341882,1735713033438,-151.0,0.00019178,2]
[347341883,1735713033447,-281.892938,0.00019178,2]
[347341884,1735713033457,-151.0,0.00019178,2]
[347341885,1735713033467,-151.0,0.00019178,2]
[347341886,1735713033476,-500.0,0.00019178,2]
[347341887,1735713033486,-500.0,0.00019178,2]
[347341888,1735713033495,-500.0,0.00019178,2]
[347341889,1735713033506,-500.0,0.00019178,2]
[347341890,1735713033515,-502.05683743,0.00019178,2]
[347341891,1735713033524,-500.0,0.00019178,2]
[347341892,1735713033533,-332.538063,0.00019178,2]
[347341893,1735713033543,-332.538063,0.00019178,2]
[347341894,1735713033553,-332.538063,0.00019178,2]
[347341895,1735713033562,-332.538063,0.00019178,2]
[347341896,1735713033572,-332.538063,0.00019178,2]
[347341897,1735713033581,-332.538063,0.00019178,2]
[347341898,1735713033591,-332.538063,0.00019178,2]
[347341899,1735713033601,-332.538063,0.00019178,2]
[347341900,1735713033611,-332.538063,0.00019178,2]
[347341901,1735713033621,-332.538063,0.00019178,2]
[347341902,1735713033631,-285.47765635,0.00019178,2]
[347341903,1735713033814,-169.87045863,0.00019178,2]
[347341904,1735713033824,-332.538063,0.00019178,2]
[347341905,1735713033833,-332.538063,0.00019178,2]
[347341906,1735713033843,-151.0,0.00019178,2]
[347341907,1735713033852,-332.538063,0.00019178,2]
[347341908,1735713033861,-151.0,0.00019178,2]
[347341909,1735713033871,-151.0,0.00019178,2]
[347341910,1735713033880,-332.538063,0.00019178,2]
[347341911,1735713033890,-111.48288297,0.00019178,2]
[347341915,1735713038398,-39.51711703,0.00019178,2]
[347341916,1735713038408,-332.538063,0.00019178,2]
[347341917,1735713038417,-500.0,0.00019178,2]
[347341918,1735713038427,-151.0,0.00019178,2]
[347341919,1735713038436,-332.538063,0.00019178,2]
[347341920,1735713038446,-151.0,0.00019178,2]
[347341921,1735713038455,-151.0,0.00019178,2]
[347341923,1735713038465,-151.0,0.00019178,2]
[347341925,1735713038474,-332.538063,0.00019178,2]
[347341926,1735713038483,-151.0,0.00019178,2]
[347341927,1735713038492,-500.0,0.00019178,2]
[347341928,1735713038501,-332.538063,0.00019178,2]
[347341929,1735713038510,-332.538063,0.00019178,2]
[347341930,1735713038520,-151.0,0.00019178,2]
[347341931,1735713038529,-332.538071,0.00019178,2]
[347341932,1735713038538,-16.10367934,0.00019178,2]
[347341933,1735713038551,-134.89632066,0.00019178,2]
[347341934,1735713038560,-151.0,0.00019178,2]
[347341935,1735713038569,-282.732746,0.00019178,2]
[347341936,1735713038578,-500.0,0.00019178,2]
[347341937,1735713038587,-515.2840783,0.00019178,2]
[347341938,1735713038596,-500.0,0.00019178,2]
[347341939,1735713038605,-500.0,0.00019178,2]
[347341940,1735713038615,-500.0,0.00019178,2]
[347341941,1735713038624,-500.0,0.00019178,2]
[347341942,1735713038633,-502.37220969,0.00019178,2]
[347341943,1735713038642,-500.0,0.00019178,2]
[347341944,1735713038651,-500.0,0.00019178,2]
[347341945,1735713038660,-500.0,0.00019178,2]
[347341946,1735713038669,-1660.48,0.00019178,2]
[347341947,1735713038680,-500.0,0.00019178,2]
[347341948,1735713038689,-501.65883138,0.00019178,2]
[347341949,1735713038698,-501.00765593,0.00019178,2]
[347341950,1735713038707,-500.0,0.00019178,2]
[347341951,1735713038716,-431.02703449,0.00019178,2]
[347341952,1735713038725,-500.0,0.00019178,2]
[347341953,1735713038735,-606.65488357,0.00019178,2]
[347341954,1735713038744,-500.0,0.00019178,2]
[347341955,1735713038754,-500.0,0.00019178,2]
[347341956,1735713038763,-512.326715,0.00019178,2]
[347341957,1735713038772,-512.326715,0.00019178,2]
[347341958,1735713038781,-512.326715,0.00019178,2]
[347341959,1735713038791,-500.0,0.00019178,2]
[347341960,1735713038799,-512.326721,0.00019178,2]
[347341961,1735713038809,-500.0,0.00019178,2]
[347341962,1735713038818,-500.0,0.00019178,2]
[347341963,1735713038827,-500.91134866,0.00019178,2]
[347341964,1735713038841,-331.71211866,0.00019178,2]
[347341965,1735713038856,-513.0436757,0.00019178,2]
[347341966,1735713038871,-500.0,0.00019178,2]
[347341967,1735713038883,-500.0,0.00019178,2]
[347341968,1735713038894,-500.0,0.00019178,2]
[347341969,1735713038909,-307.49279673,0.00019178,2]
[347342001,1735713040487,-155.75442821,0.00019178,2]
[347342003,1735713040498,-462.96233074,0.00019178,2]
[347342006,1735713040519,-40.10796916,0.00019178,2]
[347342008,1735713040531,-500.0,0.00019178,2]
[347342011,1735713040542,-500.0,0.00019178,2]
[347342013,1735713040553,-673.3,0.00019178,2]
[347342015,1735713040563,-210.82117571,0.00019178,2]
[347342308,1735713043334,-726.92263329,0.000181,2]
[347342310,1735713043346,-9.61724572,0.00019178,2]
[347342322,1735713043452,-279.56157857,0.00019178,2]
[347342324,1735713043464,-500.90113766,0.00019178,2]
[347342326,1735713043476,-151.0,0.00019178,2]
[347342329,1735713043488,-151.0,0.00019178,2]
[347342331,1735713043500,-503.35056093,0.00019178,2]
[347342334,1735713043509,-151.0,0.00019178,2]
[347342337,1735713043519,-151.0,0.00019178,2]
[347342341,1735713043529,-151.0,0.00019178,2]
[347342345,1735713043538,-151.0,0.00019178,2]
[347342349,1735713043547,-223.481633,0.00019178,2]
[347342353,1735713043557,-372.89031626,0.00019178,2]
[347342355,1735713043569,-127.10968374,0.00019178,2]
[347342357,1735713043579,-500.0,0.00019178,2]
[347342360,1735713043588,-500.0,0.00019178,2]
[347342363,1735713043598,-500.0,0.00019178,2]
[347342382,1735713043768,-500.0,0.00019178,2]
[347342385,1735713043787,-442.47631061,0.00019178,2]
[347342387,1735713043798,-500.0,0.00019178,2]
[347342389,1735713043808,-500.0,0.00019178,2]
[347342391,1735713043817,-500.0,0.00019178,2]
[347342393,1735713043827,-500.66391752,0.00019178,2]
[347342395,1735713043836,-500.49833447,0.00019178,2]
[347342397,1735713043846,-500.0,0.00019178,2]
[347342399,1735713043855,-505.88130915,0.00019178,2]
[347342401,1735713043864,-500.0,0.00019178,2]
[347342402,1735713043874,-514.87,0.00019178,2]
[347342404,1735713043884,-500.0,0.00019178,2]
[347342406,1735713043893,-501.52749384,0.00019178,2]
[347342408,1735713043903,-500.0,0.00019178,2]
[347342410,1735713043913,-500.0,0.00019178,2]
[347342412,1735713043923,-500.0,0.00019178,2]
[347342414,1735713043932,-229.54514627,0.00019178,2]
[347342416,1735713043941,-500.0,0.00019178,2]
[347342418,1735713043951,-500.0,0.00019178,2]
[347342420,1735713043960,-1318.83,0.00019178,2]
[347342422,1735713043970,-500.0,0.00019178,2]
[347342424,1735713043978,-504.38245104,0.00019178,2]
[347342426,1735713043987,-500.0,0.00019178,2]
[347342428,1735713043997,-538.17112668,0.00019178,2]
[347342430,1735713044006,-502.93725127,0.00019178,2]
[347342432,1735713044015,-500.0,0.00019178,2]
[347342434,1735713044024,-500.0,0.00019178,2]
[347342436,1735713044033,-502.06587508,0.00019178,2]
[347342438,1735713044043,-500.0,0.00019178,2]
[347342440,1735713044054,-500.0,0.00019178,2]
[347342442,1735713044063,-500.0,0.00019178,2]
[347342443,1735713044072,-500.0,0.00019178,2]
[347342445,1735713044083,-500.0,0.00019178,2]
[347342447,1735713044092,-506.93199861,0.00019178,2]
[347342449,1735713044101,-500.0,0.00019178,2]
[347342451,1735713044110,-501.48749718,0.00019178,2]
[347342453,1735713044119,-500.0,0.00019178,2]
[347342455,1735713044130,-500.0,0.00019178,2]
[347342457,1735713044140,-500.0,0.00019178,2]
[347342459,1735713044150,-500.0,0.00019178,2]
[347342461,1735713044159,-500.0,0.00019178,2]
[347342463,1735713044169,-500.0,0.00019178,2]
[347342465,1735713044178,-500.0,0.00019178,2]
[347342467,1735713044187,-500.0,0.00019178,2]
[347342469,1735713044197,-497.87018578,0.00019178,2]
[347342471,1735713044206,-502.87343523,0.00019178,2]
[347342473,1735713044215,-500.0,0.00019178,2]